[Event "Live Chess"]
[Site "Chess.com"]
[Date "2010.12.06"]
[Round "-"]
[White "hipposcottimus"]
[Black "caturku1"]
[Result "0-1"]
[CurrentPosition "6k1/pp3ppp/3p3B/n2P4/6Q1/2N5/PPP2PPP/4r1K1 w - -"]
[Timezone "UTC"]
[ECO "C57"]
[ECOUrl "https://www.chess.com/openings/Italian-Game-Knight-Attack-Polerio-Defense"]
[UTCDate "2010.12.06"]
[UTCTime "22:05:05"]
[WhiteElo "1596"]
[BlackElo "1489"]
[TimeControl "60"]
[Termination "caturku1 won by checkmate"]
[StartTime "22:05:05"]
[EndDate "2010.12.06"]
[EndTime "22:06:39"]
[Link "https://www.chess.com/game/live/74727406"]

1. e4 {[%clk 0:01:00]} 1... e5 {[%clk 0:01:00]} 2. Nf3 {[%clk 0:00:59.7]} 2... Nc6 {[%clk 0:01:00]} 3. Bc4 {[%clk 0:00:59.4]} 3... Nf6 {[%clk 0:01:00]} 4. Ng5 {[%clk 0:00:58.9]} 4... d5 {[%clk 0:00:58.4]} 5. exd5 {[%clk 0:00:58.5]} 5... Na5 {[%clk 0:00:57.4]} 6. Be2 {[%clk 0:00:57.7]} 6... Nxd5 {[%clk 0:00:52.1]} 7. d3 {[%clk 0:00:56.8]} 7... e4 {[%clk 0:00:42.6]} 8. Nxe4 {[%clk 0:00:55.3]} 8... Bf5 {[%clk 0:00:39.5]} 9. O-O {[%clk 0:00:54.6]} 9... Bd6 {[%clk 0:00:38.2]} 10. Nxd6+ {[%clk 0:00:53.1]} 10... cxd6 {[%clk 0:00:37.1]} 11. Nc3 {[%clk 0:00:49.4]} 11... Nf6 {[%clk 0:00:32]} 12. Re1 {[%clk 0:00:47.8]} 12... O-O {[%clk 0:00:27.6]} 13. d4 {[%clk 0:00:46.8]} 13... Re8 {[%clk 0:00:26.4]} 14. d5 {[%clk 0:00:42.3]} 14... Qe7 {[%clk 0:00:22.9]} 15. Bd2 {[%clk 0:00:39.9]} 15... Bg4 {[%clk 0:00:21.3]} 16. Bxg4 {[%clk 0:00:36.1]} 16... Nxg4 {[%clk 0:00:20.1]} 17. Qxg4 {[%clk 0:00:34.9]} 17... Qf6 {[%clk 0:00:14.1]} 18. Rxe8+ {[%clk 0:00:34.3]} 18... Rxe8 {[%clk 0:00:12.8]} 19. Bg5 {[%clk 0:00:31.6]} 19... Qe5 {[%clk 0:00:10.7]} 20. Bh6 {[%clk 0:00:30.7]} 20... Qe1+ {[%clk 0:00:09.7]} 21. Rxe1 {[%clk 0:00:27.3]} 21... Rxe1# {[%clk 0:00:09.7]} 0-1

[Event "Live Chess"]
[Site "Chess.com"]
[Date "2010.12.06"]
[Round "-"]
[White "caturku1"]
[Black "hipposcottimus"]
[Result "0-1"]
[CurrentPosition "6k1/pp1B2pp/2p5/8/3p1P2/2q5/P1P2RPP/4r1K1 w - -"]
[Timezone "UTC"]
[ECO "C47"]
[ECOUrl "https://www.chess.com/openings/Four-Knights-Game-Scotch-Variation-4...Bb4-5.d5"]
[UTCDate "2010.12.06"]
[UTCTime "22:02:50"]
[WhiteElo "1477"]
[BlackElo "1606"]
[TimeControl "60"]
[Termination "hipposcottimus won on time"]
[StartTime "22:02:50"]
[EndDate "2010.12.06"]
[EndTime "22:04:44"]
[Link "https://www.chess.com/game/live/74726835"]

1. e4 {[%clk 0:01:00]} 1... e5 {[%clk 0:01:00]} 2. Nf3 {[%clk 0:01:00]} 2... Nc6 {[%clk 0:00:59.7]} 3. Nc3 {[%clk 0:01:00]} 3... Nf6 {[%clk 0:00:59.4]} 4. d4 {[%clk 0:01:00]} 4... Bb4 {[%clk 0:00:59]} 5. d5 {[%clk 0:01:00]} 5... Bxc3+ {[%clk 0:00:58.3]} 6. bxc3 {[%clk 0:00:58.5]} 6... Ne7 {[%clk 0:00:57.6]} 7. Bg5 {[%clk 0:00:56.3]} 7... Nxe4 {[%clk 0:00:55]} 8. Bd3 {[%clk 0:00:55.2]} 8... Nxg5 {[%clk 0:00:53.3]} 9. Nxg5 {[%clk 0:00:55.2]} 9... Nxd5 {[%clk 0:00:52.7]} 10. Qf3 {[%clk 0:00:54]} 10... Qxg5 {[%clk 0:00:50.9]} 11. Qxd5 {[%clk 0:00:52.6]} 11... O-O {[%clk 0:00:49.1]} 12. O-O {[%clk 0:00:47.8]} 12... c6 {[%clk 0:00:48.8]} 13. Qe4 {[%clk 0:00:44.9]} 13... f5 {[%clk 0:00:44.8]} 14. Qxe5 {[%clk 0:00:40.9]} 14... d5 {[%clk 0:00:39.1]} 15. f4 {[%clk 0:00:40]} 15... Qf6 {[%clk 0:00:35.1]} 16. Qe3 {[%clk 0:00:36]} 16... Qxc3 {[%clk 0:00:33.5]} 17. Rae1 {[%clk 0:00:28.2]} 17... d4 {[%clk 0:00:32.7]} 18. Qe5 {[%clk 0:00:23.3]} 18... Bd7 {[%clk 0:00:29.7]} 19. Rf3 {[%clk 0:00:20.1]} 19... Rae8 {[%clk 0:00:29.1]} 20. Qxe8 {[%clk 0:00:12.9]} 20... Bxe8 {[%clk 0:00:25]} 21. Rxe8 {[%clk 0:00:11.1]} 21... Rxe8 {[%clk 0:00:23.5]} 22. Bxf5 {[%clk 0:00:07.3]} 22... Qe1+ {[%clk 0:00:22.2]} 23. Rf1 {[%clk 0:00:05.8]} 23... Qe3+ {[%clk 0:00:19.2]} 24. Rf2 {[%clk 0:00:03.5]} 24... Qc3 {[%clk 0:00:18.5]} 25. Bd7 {[%clk 0:00:00.8]} 25... Re1+ {[%clk 0:00:17.8]} 0-1

[Event "Live Chess"]
[Site "Chess.com"]
[Date "2010.12.06"]
[Round "-"]
[White "CMdestroyer"]
[Black "hipposcottimus"]
[Result "0-1"]
[CurrentPosition "r5k1/pp3ppp/2nb1q2/3p4/P2P4/NPP5/1B2K2P/R5n1 w - -"]
[Timezone "UTC"]
[ECO "A01"]
[ECOUrl "https://www.chess.com/openings/Nimzowitsch-Larsen-Attack-Modern-Variation-2.Bb2"]
[UTCDate "2010.12.06"]
[UTCTime "22:01:27"]
[WhiteElo "1510"]
[BlackElo "1601"]
[TimeControl "60"]
[Termination "hipposcottimus won on time"]
[StartTime "22:01:27"]
[EndDate "2010.12.06"]
[EndTime "22:02:26"]
[Link "https://www.chess.com/game/live/74726377"]

1. b3 {[%clk 0:01:00]} 1... e5 {[%clk 0:01:00]} 2. Bb2 {[%clk 0:00:59.6]} 2... e4 {[%clk 0:00:58.9]} 3. d4 {[%clk 0:00:59.6]} 3... d5 {[%clk 0:00:58.2]} 4. e3 {[%clk 0:00:58.6]} 4... Nf6 {[%clk 0:00:57.6]} 5. Be2 {[%clk 0:00:58.2]} 5... Bb4+ {[%clk 0:00:57]} 6. c3 {[%clk 0:00:57.1]} 6... Bd6 {[%clk 0:00:56.7]} 7. Nd2 {[%clk 0:00:55.8]} 7... O-O {[%clk 0:00:56.4]} 8. Nb1 {[%clk 0:00:54]} 8... c5 {[%clk 0:00:56.1]} 9. a4 {[%clk 0:00:53.6]} 9... cxd4 {[%clk 0:00:55.1]} 10. exd4 {[%clk 0:00:52.8]} 10... Nc6 {[%clk 0:00:54.8]} 11. Nh3 {[%clk 0:00:51.1]} 11... Re8 {[%clk 0:00:54.4]} 12. O-O {[%clk 0:00:49.6]} 12... Bxh3 {[%clk 0:00:54]} 13. gxh3 {[%clk 0:00:48.5]} 13... e3 {[%clk 0:00:50.9]} 14. Kh1 {[%clk 0:00:48.5]} 14... Ne4 {[%clk 0:00:50]} 15. Rg1 {[%clk 0:00:48.5]} 15... exf2 {[%clk 0:00:48.1]} 16. Qe1 {[%clk 0:00:47.3]} 16... fxg1=Q+ {[%clk 0:00:45.7]} 17. Qxg1 {[%clk 0:00:45.8]} 17... Qf6 {[%clk 0:00:44.7]} 18. Na3 {[%clk 0:00:42.8]} 18... Nf2+ {[%clk 0:00:44.2]} 19. Kg2 {[%clk 0:00:38.5]} 19... Rxe2 {[%clk 0:00:43.7]} 20. Kf1 {[%clk 0:00:34.1]} 20... Nxh3+ {[%clk 0:00:40.2]} 21. Kxe2 {[%clk 0:00:32.4]} 21... Nxg1+ {[%clk 0:00:39.4]} 0-1

[Event "Live Chess"]
[Site "Chess.com"]
[Date "2010.12.06"]
[Round "-"]
[White "hipposcottimus"]
[Black "Daniela84"]
[Result "1-0"]
[CurrentPosition "1k6/pp5Q/5p2/4p3/4n3/8/PP3PP1/3r1NK1 b - -"]
[Timezone "UTC"]
[ECO "B01"]
[ECOUrl "https://www.chess.com/openings/Scandinavian-Defense-Mieses-Kotrc-Main-Line-4.d4"]
[UTCDate "2010.12.06"]
[UTCTime "21:58:54"]
[WhiteElo "1595"]
[BlackElo "1461"]
[TimeControl "60"]
[Termination "hipposcottimus won on time"]
[StartTime "21:58:54"]
[EndDate "2010.12.06"]
[EndTime "22:00:44"]
[Link "https://www.chess.com/game/live/74725870"]

1. e4 {[%clk 0:01:00]} 1... d5 {[%clk 0:01:00]} 2. exd5 {[%clk 0:00:58.1]} 2... Qxd5 {[%clk 0:00:59.2]} 3. Nc3 {[%clk 0:00:57.8]} 3... Qa5 {[%clk 0:00:58.8]} 4. d4 {[%clk 0:00:56.6]} 4... Bf5 {[%clk 0:00:57.8]} 5. Bd2 {[%clk 0:00:56.2]} 5... c6 {[%clk 0:00:56.2]} 6. Nce2 {[%clk 0:00:51]} 6... Qc7 {[%clk 0:00:54.2]} 7. Ng3 {[%clk 0:00:50.6]} 7... Bg6 {[%clk 0:00:52.9]} 8. Be2 {[%clk 0:00:50.1]} 8... Nf6 {[%clk 0:00:52.1]} 9. Nf3 {[%clk 0:00:49.8]} 9... e6 {[%clk 0:00:51.3]} 10. O-O {[%clk 0:00:49.5]} 10... Bd6 {[%clk 0:00:49.6]} 11. Bg5 {[%clk 0:00:49.2]} 11... Bxg3 {[%clk 0:00:48.2]} 12. Bxf6 {[%clk 0:00:48.4]} 12... Bxh2+ {[%clk 0:00:45.4]} 13. Nxh2 {[%clk 0:00:47.2]} 13... gxf6 {[%clk 0:00:44.5]} 14. Bf3 {[%clk 0:00:42.6]} 14... Nd7 {[%clk 0:00:42.6]} 15. Re1 {[%clk 0:00:42.3]} 15... O-O-O {[%clk 0:00:40.4]} 16. c4 {[%clk 0:00:42]} 16... e5 {[%clk 0:00:38.3]} 17. d5 {[%clk 0:00:41.6]} 17... cxd5 {[%clk 0:00:32.9]} 18. cxd5 {[%clk 0:00:40.3]} 18... Nb6 {[%clk 0:00:31.1]} 19. Rc1 {[%clk 0:00:39.8]} 19... Qxc1 {[%clk 0:00:28.9]} 20. Qxc1+ {[%clk 0:00:38.7]} 20... Kb8 {[%clk 0:00:26.7]} 21. d6 {[%clk 0:00:38.3]} 21... Rxd6 {[%clk 0:00:25]} 22. Qc5 {[%clk 0:00:35.8]} 22... Rhd8 {[%clk 0:00:21.4]} 23. Rc1 {[%clk 0:00:32.8]} 23... Be4 {[%clk 0:00:18.2]} 24. Bxe4 {[%clk 0:00:31.1]} 24... Rd1+ {[%clk 0:00:17]} 25. Rxd1 {[%clk 0:00:27.3]} 25... Rxd1+ {[%clk 0:00:15.9]} 26. Nf1 {[%clk 0:00:27.1]} 26... Na4 {[%clk 0:00:09.5]} 27. Qe7 {[%clk 0:00:26.5]} 27... Nc5 {[%clk 0:00:02.9]} 28. Qxf7 {[%clk 0:00:25.1]} 28... Nxe4 {[%clk 0:00:01.2]} 29. Qxh7 {[%clk 0:00:23.6]} 1-0

[Event "Live Chess"]
[Site "Chess.com"]
[Date "2010.12.06"]
[Round "-"]
[White "formerZezoBEmployee"]
[Black "hipposcottimus"]
[Result "0-1"]
[CurrentPosition "3r2k1/pp3p1p/5pb1/8/8/5P2/PPPN2PP/2K1r3 w - -"]
[Timezone "UTC"]
[ECO "C47"]
[ECOUrl "https://www.chess.com/openings/Four-Knights-Game-Italian-Variation"]
[UTCDate "2010.12.06"]
[UTCTime "21:56:00"]
[WhiteElo "1418"]
[BlackElo "1590"]
[TimeControl "60+1"]
[Termination "hipposcottimus won by checkmate"]
[StartTime "21:56:00"]
[EndDate "2010.12.06"]
[EndTime "21:58:34"]
[Link "https://www.chess.com/game/live/74725140"]

1. e4 {[%clk 0:01:00]} 1... e5 {[%clk 0:01:00]} 2. Nf3 {[%clk 0:00:59.3]} 2... Nc6 {[%clk 0:01:00.7]} 3. Nc3 {[%clk 0:00:59]} 3... Nf6 {[%clk 0:01:01.4]} 4. Bc4 {[%clk 0:00:59]} 4... Bb4 {[%clk 0:01:01.7]} 5. Ng5 {[%clk 0:00:58.6]} 5... d5 {[%clk 0:01:00.8]} 6. exd5 {[%clk 0:00:57.8]} 6... Na5 {[%clk 0:01:00.9]} 7. d6 {[%clk 0:00:56.1]} 7... Nxc4 {[%clk 0:00:58.8]} 8. dxc7 {[%clk 0:00:53.1]} 8... Qxc7 {[%clk 0:00:58.1]} 9. Qf3 {[%clk 0:00:49.4]} 9... O-O {[%clk 0:00:57.2]} 10. d3 {[%clk 0:00:43.2]} 10... Bg4 {[%clk 0:00:57.8]} 11. Qg3 {[%clk 0:00:38.3]} 11... Bd6 {[%clk 0:00:54.9]} 12. dxc4 {[%clk 0:00:33]} 12... e4 {[%clk 0:00:54.7]} 13. Qe3 {[%clk 0:00:31.2]} 13... Qxc4 {[%clk 0:00:52.9]} 14. Bd2 {[%clk 0:00:21.9]} 14... Bc5 {[%clk 0:00:51.3]} 15. Qg3 {[%clk 0:00:19.4]} 15... Rfe8 {[%clk 0:00:46.7]} 16. f3 {[%clk 0:00:19.6]} 16... e3 {[%clk 0:00:44.9]} 17. O-O-O {[%clk 0:00:19.5]} 17... exd2+ {[%clk 0:00:44.4]} 18. Rxd2 {[%clk 0:00:19.9]} 18... Bh5 {[%clk 0:00:43.4]} 19. Qf4 {[%clk 0:00:19.1]} 19... Bg6 {[%clk 0:00:43.8]} 20. Qg3 {[%clk 0:00:17.6]} 20... Be3 {[%clk 0:00:39.9]} 21. Nce4 {[%clk 0:00:13.7]} 21... Bxd2+ {[%clk 0:00:39.9]} 22. Nxd2 {[%clk 0:00:13.7]} 22... Qe2 {[%clk 0:00:38.6]} 23. Rd1 {[%clk 0:00:12.2]} 23... Qe3 {[%clk 0:00:36.5]} 24. Ne4 {[%clk 0:00:10.8]} 24... Rad8 {[%clk 0:00:36.8]} 25. Nxf6+ {[%clk 0:00:10]} 25... gxf6 {[%clk 0:00:36.2]} 26. Qe1 {[%clk 0:00:03.7]} 26... Qxe1 {[%clk 0:00:29]} 27. Rxe1 {[%clk 0:00:04]} 27... Rxe1# {[%clk 0:00:29.7]} 0-1

[Event "Live Chess"]
[Site "Chess.com"]
[Date "2010.12.06"]
[Round "-"]
[White "hipposcottimus"]
[Black "cool1000"]
[Result "0-1"]
[CurrentPosition "8/pp6/2kp4/3Nn3/3pPr2/8/P1P3PP/R5K1 w - -"]
[Timezone "UTC"]
[ECO "C40"]
[ECOUrl "https://www.chess.com/openings/Kings-Pawn-Opening-Kings-Knight-Busch-Gass-Gambit"]
[UTCDate "2010.12.06"]
[UTCTime "21:49:01"]
[WhiteElo "1586"]
[BlackElo "1575"]
[TimeControl "60"]
[Termination "cool1000 won on time"]
[StartTime "21:49:01"]
[EndDate "2010.12.06"]
[EndTime "21:51:06"]
[Link "https://www.chess.com/game/live/74723061"]

1. e4 {[%clk 0:01:00]} 1... e5 {[%clk 0:01:00]} 2. Nf3 {[%clk 0:00:56.4]} 2... Bc5 {[%clk 0:01:00]} 3. Bc4 {[%clk 0:00:54.8]} 3... Bxf2+ {[%clk 0:01:00]} 4. Kxf2 {[%clk 0:00:53.3]} 4... d6 {[%clk 0:00:57.9]} 5. Re1 {[%clk 0:00:53]} 5... c6 {[%clk 0:00:57.9]} 6. Kg1 {[%clk 0:00:52.6]} 6... Nf6 {[%clk 0:00:56.3]} 7. d3 {[%clk 0:00:50.4]} 7... Ng4 {[%clk 0:00:55.1]} 8. Ng5 {[%clk 0:00:43.6]} 8... Qb6+ {[%clk 0:00:53.8]} 9. d4 {[%clk 0:00:39]} 9... exd4 {[%clk 0:00:51.3]} 10. Bd3 {[%clk 0:00:38.5]} 10... O-O {[%clk 0:00:44.9]} 11. Rf1 {[%clk 0:00:38]} 11... c5 {[%clk 0:00:43.7]} 12. b3 {[%clk 0:00:33.3]} 12... c4 {[%clk 0:00:40]} 13. bxc4 {[%clk 0:00:31.4]} 13... Be6 {[%clk 0:00:36.4]} 14. Na3 {[%clk 0:00:29.3]} 14... Bxc4 {[%clk 0:00:33.9]} 15. Nxc4 {[%clk 0:00:27.7]} 15... Nd7 {[%clk 0:00:32.2]} 16. Nxb6 {[%clk 0:00:26.3]} 16... Nc5 {[%clk 0:00:32.2]} 17. Nd7 {[%clk 0:00:24.6]} 17... Rfe8 {[%clk 0:00:28.4]} 18. Qxg4 {[%clk 0:00:22]} 18... Nxd3 {[%clk 0:00:26.2]} 19. Nxh7 {[%clk 0:00:18.9]} 19... f6 {[%clk 0:00:26.2]} 20. Qf5 {[%clk 0:00:17.9]} 20... Ne5 {[%clk 0:00:21.8]} 21. Ndxf6+ {[%clk 0:00:17.2]} 21... Kf7 {[%clk 0:00:18.8]} 22. Nh5+ {[%clk 0:00:11.4]} 22... Ke7 {[%clk 0:00:16.2]} 23. Qg5+ {[%clk 0:00:07.9]} 23... Kd7 {[%clk 0:00:16.2]} 24. N7f6+ {[%clk 0:00:07.6]} 24... Kc6 {[%clk 0:00:15.7]} 25. Nxe8 {[%clk 0:00:06.4]} 25... Rxe8 {[%clk 0:00:15.7]} 26. Qxg7 {[%clk 0:00:04.4]} 26... Rc8 {[%clk 0:00:14]} 27. Nf6 {[%clk 0:00:04.1]} 27... Rc7 {[%clk 0:00:12.8]} 28. Nd5 {[%clk 0:00:03.8]} 28... Rxg7 {[%clk 0:00:10.9]} 29. Rf7 {[%clk 0:00:02.8]} 29... Rxf7 {[%clk 0:00:09.3]} 30. Bf4 {[%clk 0:00:02.5]} 30... Rxf4 {[%clk 0:00:07.9]} 0-1

[Event "Live Chess"]
[Site "Chess.com"]
[Date "2010.12.06"]
[Round "-"]
[White "karadimis"]
[Black "hipposcottimus"]
[Result "1-0"]
[CurrentPosition "k1rq1b2/pQ5R/5p2/3pp3/3p4/2P1PNP1/PP3PP1/R3K3 b Q -"]
[Timezone "UTC"]
[ECO "D00"]
[ECOUrl "https://www.chess.com/openings/Queens-Pawn-Opening-Levitsky-Attack-2...c6-3.e3"]
[UTCDate "2010.12.06"]
[UTCTime "21:46:16"]
[WhiteElo "1611"]
[BlackElo "1595"]
[TimeControl "60"]
[Termination "karadimis won by checkmate"]
[StartTime "21:46:16"]
[EndDate "2010.12.06"]
[EndTime "21:47:40"]
[Link "https://www.chess.com/game/live/74722573"]

1. d4 {[%clk 0:01:00]} 1... d5 {[%clk 0:01:00]} 2. Bg5 {[%clk 0:00:59.5]} 2... c6 {[%clk 0:00:59.8]} 3. e3 {[%clk 0:00:58.3]} 3... f6 {[%clk 0:00:59.6]} 4. Bh4 {[%clk 0:00:57.3]} 4... Nh6 {[%clk 0:00:59.3]} 5. Bd3 {[%clk 0:00:55.7]} 5... Bf5 {[%clk 0:00:56.6]} 6. Nf3 {[%clk 0:00:51.8]} 6... e6 {[%clk 0:00:54.2]} 7. c3 {[%clk 0:00:50.7]} 7... Be7 {[%clk 0:00:53.4]} 8. Qc2 {[%clk 0:00:49.9]} 8... Bxd3 {[%clk 0:00:51.9]} 9. Qxd3 {[%clk 0:00:48.8]} 9... O-O {[%clk 0:00:51.6]} 10. Nbd2 {[%clk 0:00:45.3]} 10... Nf5 {[%clk 0:00:51.2]} 11. Bg3 {[%clk 0:00:43.2]} 11... Nxg3 {[%clk 0:00:50.3]} 12. hxg3 {[%clk 0:00:42.2]} 12... e5 {[%clk 0:00:49.8]} 13. Qxh7+ {[%clk 0:00:41.1]} 13... Kf7 {[%clk 0:00:49.3]} 14. Qh5+ {[%clk 0:00:40.3]} 14... Kg8 {[%clk 0:00:47.6]} 15. Qh8+ {[%clk 0:00:38.3]} 15... Kf7 {[%clk 0:00:47.2]} 16. Qh5+ {[%clk 0:00:37.9]} 16... Kg8 {[%clk 0:00:46.5]} 17. Qh7+ {[%clk 0:00:37.4]} 17... Kf7 {[%clk 0:00:46.2]} 18. Qh5+ {[%clk 0:00:36.8]} 18... Kg8 {[%clk 0:00:45.9]} 19. Qh7+ {[%clk 0:00:36.4]} 19... Kf7 {[%clk 0:00:45.6]} 20. Qh5+ {[%clk 0:00:35.8]} 20... g6 {[%clk 0:00:45.3]} 21. Qh7+ {[%clk 0:00:34.9]} 21... Ke8 {[%clk 0:00:45]} 22. Qxg6+ {[%clk 0:00:33.2]} 22... Kd7 {[%clk 0:00:44.4]} 23. Qf5+ {[%clk 0:00:32.5]} 23... Kc7 {[%clk 0:00:43.1]} 24. Rh7 {[%clk 0:00:30.9]} 24... Nd7 {[%clk 0:00:38.4]} 25. Nb3 {[%clk 0:00:28.3]} 25... Rc8 {[%clk 0:00:37.6]} 26. Nc5 {[%clk 0:00:27.4]} 26... Kb8 {[%clk 0:00:37.1]} 27. Nxd7+ {[%clk 0:00:26.1]} 27... Ka8 {[%clk 0:00:36.7]} 28. Nxf8 {[%clk 0:00:23.5]} 28... Bxf8 {[%clk 0:00:36.4]} 29. Qg6 {[%clk 0:00:20.3]} 29... c5 {[%clk 0:00:35.6]} 30. Qf7 {[%clk 0:00:19.5]} 30... cxd4 {[%clk 0:00:33.2]} 31. Qxb7# {[%clk 0:00:18.2]} 1-0

[Event "Live Chess"]
[Site "Chess.com"]
[Date "2010.12.06"]
[Round "-"]
[White "hipposcottimus"]
[Black "karadimis"]
[Result "1-0"]
[CurrentPosition "3k4/p1R1Q1p1/3r1p2/2p3p1/8/8/P5PP/6RK b - -"]
[Timezone "UTC"]
[ECO "A06"]
[ECOUrl "https://www.chess.com/openings/Reti-Opening-Tennison-Gambit"]
[UTCDate "2010.12.06"]
[UTCTime "21:44:16"]
[WhiteElo "1595"]
[BlackElo "1611"]
[TimeControl "60"]
[Termination "hipposcottimus won by checkmate"]
[StartTime "21:44:16"]
[EndDate "2010.12.06"]
[EndTime "21:45:57"]
[Link "https://www.chess.com/game/live/74721997"]

1. e4 {[%clk 0:01:00]} 1... d5 {[%clk 0:01:00]} 2. Nf3 {[%clk 0:00:59.7]} 2... dxe4 {[%clk 0:00:58.5]} 3. Ng5 {[%clk 0:00:59.4]} 3... Bf5 {[%clk 0:00:55.9]} 4. f3 {[%clk 0:00:58.4]} 4... e6 {[%clk 0:00:53.7]} 5. fxe4 {[%clk 0:00:57.4]} 5... Qxg5 {[%clk 0:00:51.6]} 6. exf5 {[%clk 0:00:56.8]} 6... Qxf5 {[%clk 0:00:50.9]} 7. d4 {[%clk 0:00:52.6]} 7... Bb4+ {[%clk 0:00:49.1]} 8. c3 {[%clk 0:00:50.6]} 8... Bd6 {[%clk 0:00:48.7]} 9. Be2 {[%clk 0:00:47.8]} 9... Ne7 {[%clk 0:00:46.8]} 10. Bf3 {[%clk 0:00:47.4]} 10... Ng6 {[%clk 0:00:45.6]} 11. O-O {[%clk 0:00:46.4]} 11... Qh5 {[%clk 0:00:42.7]} 12. Bxh5 {[%clk 0:00:45.1]} 12... O-O {[%clk 0:00:40.8]} 13. Bxg6 {[%clk 0:00:44.1]} 13... hxg6 {[%clk 0:00:40.1]} 14. Bg5 {[%clk 0:00:42.8]} 14... Nc6 {[%clk 0:00:38.6]} 15. Bf4 {[%clk 0:00:42.3]} 15... e5 {[%clk 0:00:37.4]} 16. dxe5 {[%clk 0:00:40.4]} 16... Bc5+ {[%clk 0:00:36.7]} 17. Kh1 {[%clk 0:00:38.7]} 17... Rad8 {[%clk 0:00:35.4]} 18. Qf3 {[%clk 0:00:37.1]} 18... Rd2 {[%clk 0:00:34]} 19. Nxd2 {[%clk 0:00:35.1]} 19... Bg1 {[%clk 0:00:32.2]} 20. Rxg1 {[%clk 0:00:33.4]} 20... Nxe5 {[%clk 0:00:31.4]} 21. Bxe5 {[%clk 0:00:31.6]} 21... g5 {[%clk 0:00:31.1]} 22. Qg4 {[%clk 0:00:29.8]} 22... f6 {[%clk 0:00:30.8]} 23. Bxc7 {[%clk 0:00:28.6]} 23... Rc8 {[%clk 0:00:29.9]} 24. Bd6 {[%clk 0:00:28.3]} 24... Rd8 {[%clk 0:00:28.5]} 25. Bb4 {[%clk 0:00:27.9]} 25... Rxd2 {[%clk 0:00:27.4]} 26. c4 {[%clk 0:00:27.6]} 26... Rxb2 {[%clk 0:00:26.6]} 27. Be7 {[%clk 0:00:25.1]} 27... Rb6 {[%clk 0:00:25.3]} 28. c5 {[%clk 0:00:24.3]} 28... Rc6 {[%clk 0:00:24.1]} 29. Bd6 {[%clk 0:00:24]} 29... b6 {[%clk 0:00:22.8]} 30. Rae1 {[%clk 0:00:23.7]} 30... bxc5 {[%clk 0:00:21.9]} 31. Re8+ {[%clk 0:00:23.4]} 31... Kf7 {[%clk 0:00:20.8]} 32. Rc8 {[%clk 0:00:22.5]} 32... Rxd6 {[%clk 0:00:19.3]} 33. Rc7+ {[%clk 0:00:22.1]} 33... Ke8 {[%clk 0:00:17.7]} 34. Qe4+ {[%clk 0:00:21.4]} 34... Kd8 {[%clk 0:00:16.6]} 35. Qe7# {[%clk 0:00:20.4]} 1-0

[Event "Live Chess"]
[Site "Chess.com"]
[Date "2010.12.06"]
[Round "-"]
[White "hipposcottimus"]
[Black "Elud"]
[Result "1-0"]
[CurrentPosition "8/7p/3K2p1/6P1/k7/1p6/8/8 b - -"]
[Timezone "UTC"]
[ECO "B07"]
[ECOUrl "https://www.chess.com/openings/Pirc-Defense-Main-Line-Byrne-Variation-4...Bg7-5.e5-dxe5-6.dxe5"]
[UTCDate "2010.12.06"]
[UTCTime "21:41:31"]
[WhiteElo "1595"]
[BlackElo "1298"]
[TimeControl "60"]
[Termination "hipposcottimus won on time"]
[StartTime "21:41:31"]
[EndDate "2010.12.06"]
[EndTime "21:43:49"]
[Link "https://www.chess.com/game/live/74721201"]

1. e4 {[%clk 0:01:00]} 1... d6 {[%clk 0:01:00]} 2. d4 {[%clk 0:00:56.9]} 2... Nf6 {[%clk 0:00:59.7]} 3. Nc3 {[%clk 0:00:54.4]} 3... g6 {[%clk 0:00:58.9]} 4. Bg5 {[%clk 0:00:53.8]} 4... Bg7 {[%clk 0:00:57.4]} 5. e5 {[%clk 0:00:53.3]} 5... dxe5 {[%clk 0:00:55.1]} 6. dxe5 {[%clk 0:00:53.1]} 6... Qxd1+ {[%clk 0:00:53.9]} 7. Rxd1 {[%clk 0:00:52.9]} 7... Ng4 {[%clk 0:00:53.1]} 8. Nf3 {[%clk 0:00:50.5]} 8... Nxe5 {[%clk 0:00:51.1]} 9. Bb5+ {[%clk 0:00:48.9]} 9... c6 {[%clk 0:00:49.6]} 10. Nxe5 {[%clk 0:00:47.9]} 10... Bxe5 {[%clk 0:00:47.7]} 11. Bd3 {[%clk 0:00:47.6]} 11... Bg4 {[%clk 0:00:45.5]} 12. O-O {[%clk 0:00:47.3]} 12... Bxd1 {[%clk 0:00:43.8]} 13. Rxd1 {[%clk 0:00:47.1]} 13... e6 {[%clk 0:00:41.4]} 14. f4 {[%clk 0:00:46.8]} 14... Bc7 {[%clk 0:00:39.1]} 15. g3 {[%clk 0:00:44.7]} 15... Nd7 {[%clk 0:00:36.8]} 16. Bh6 {[%clk 0:00:39.5]} 16... O-O-O {[%clk 0:00:34.8]} 17. Bg7 {[%clk 0:00:38.6]} 17... Rhg8 {[%clk 0:00:33.7]} 18. Bd4 {[%clk 0:00:38.2]} 18... c5 {[%clk 0:00:31.6]} 19. Be5 {[%clk 0:00:36.2]} 19... Bxe5 {[%clk 0:00:29.7]} 20. fxe5 {[%clk 0:00:36]} 20... Nxe5 {[%clk 0:00:29.2]} 21. Be4 {[%clk 0:00:35.7]} 21... b6 {[%clk 0:00:27]} 22. Re1 {[%clk 0:00:33.7]} 22... Rd2 {[%clk 0:00:25.5]} 23. Bb7+ {[%clk 0:00:31.3]} 23... Kxb7 {[%clk 0:00:23.2]} 24. Rxe5 {[%clk 0:00:31]} 24... Rgd8 {[%clk 0:00:22.8]} 25. Re1 {[%clk 0:00:29]} 25... Rxc2 {[%clk 0:00:21.6]} 26. b3 {[%clk 0:00:25.3]} 26... Rdd2 {[%clk 0:00:19.9]} 27. Nb5 {[%clk 0:00:24.1]} 27... Kc6 {[%clk 0:00:17.5]} 28. Na3 {[%clk 0:00:20.2]} 28... Rxa2 {[%clk 0:00:15.6]} 29. Nc4 {[%clk 0:00:18.2]} 29... Rxh2 {[%clk 0:00:14.3]} 30. Ne5+ {[%clk 0:00:17.5]} 30... Kb7 {[%clk 0:00:11.5]} 31. Nxf7 {[%clk 0:00:17.2]} 31... Rag2+ {[%clk 0:00:09.3]} 32. Kf1 {[%clk 0:00:15.2]} 32... Rh1+ {[%clk 0:00:08.3]} 33. Kxg2 {[%clk 0:00:14]} 33... Rxe1 {[%clk 0:00:07.9]} 34. Kf3 {[%clk 0:00:13.5]} 34... e5 {[%clk 0:00:07.1]} 35. Ng5 {[%clk 0:00:12.9]} 35... e4+ {[%clk 0:00:05.2]} 36. Nxe4 {[%clk 0:00:11.9]} 36... Rxe4 {[%clk 0:00:04.5]} 37. Kxe4 {[%clk 0:00:10.8]} 37... Kc6 {[%clk 0:00:04.1]} 38. Kd3 {[%clk 0:00:09.6]} 38... Kb5 {[%clk 0:00:03.7]} 39. Kc3 {[%clk 0:00:07.9]} 39... a5 {[%clk 0:00:03.3]} 40. g4 {[%clk 0:00:07.1]} 40... a4 {[%clk 0:00:02.4]} 41. bxa4+ {[%clk 0:00:06.4]} 41... Kxa4 {[%clk 0:00:01.7]} 42. Kc4 {[%clk 0:00:06.2]} 42... b5+ {[%clk 0:00:01.2]} 43. Kxc5 {[%clk 0:00:05.8]} 43... b4 {[%clk 0:00:00.8]} 44. g5 {[%clk 0:00:04.8]} 44... b3 {[%clk 0:00:00.5]} 45. Kd6 {[%clk 0:00:04.5]} 1-0